fUSD/lending_fUSD_20240803
["ID","MTS","AMOUNT","RATE_DAILY","PERIOD"]
[333945740,1722644505684,-300.0,0.00011524,2]
[333945741,1722644505706,-306.50432141,0.00011525,2]
[333945742,1722644505729,-14211.54702222,0.00011532,2]
[333945743,1722644536918,-215.12,0.00011432,5]
[333945744,1722644536941,-243.00643023,0.00011525,2]
[333945745,1722644536963,-1435.15297778,0.00011532,2]
[333945746,1722644536984,-155.0,0.00011532,2]
[333945747,1722644537006,-3068.35496075,0.00011532,2]
[333945748,1722644537029,-290.66,0.00011766,2]
[333945749,1722644537056,-18592.70563124,0.00011776,2]
[333945758,1722645009134,150.0,7.976e-05,2]
[333945759,1722645009156,94.21,7.976e-05,2]
[333945769,1722645031792,-209.0,9.794e-05,2]
[333945770,1722645031802,-397.0,9.794e-05,2]
[333945771,1722645031811,-872.5,9.795e-05,2]
[333945772,1722645031821,-2607.95247564,0.0001,2]
[333945773,1722645031830,-300.0,0.00010562,2]
[333945774,1722645031840,-300.0,0.00010562,2]
[333945775,1722645031852,-1473.94125487,0.00010563,2]
[333945776,1722645031869,-2948.45284013,0.00010563,2]
[333945777,1722645031880,-1775.52317813,0.00010563,2]
[333945778,1722645031894,-7847.85939705,0.00010563,2]
[333945779,1722645031916,-9854.22332982,0.00010563,2]
[333945780,1722645031926,-800.0,0.000107,3]
[333945781,1722645031936,-1600.0,0.000108,3]
[333945782,1722645031946,-290.66,0.0001089,2]
[333945783,1722645031955,-290.66,0.0001089,2]
[333945784,1722645031965,-290.66,0.00010897,2]
[333945785,1722645031975,-150.0,0.00010899,2]
[333945786,1722645031985,-2500.0,0.000109,3]
[333945787,1722645031993,-6534.90015107,0.000109,2]
[333945788,1722645032005,-2254.38171156,0.000109,2]
[333945789,1722645032014,-163.63825878,0.000109,2]
[333945790,1722645032024,-499.99,0.000109,2]
[333945791,1722645032034,-6497.32631541,0.000109,2]
[333945792,1722645032046,-909.3594811,0.000109,2]
[333945793,1722645032058,-577.08950482,0.000109,2]
[333945794,1722645032069,-1670.90790627,0.000109,2]
[333945795,1722645032080,-1757.76879465,0.000109,2]
[333945796,1722645032130,-2000.0,0.000109,2]
[333945797,1722645032142,-2234.24799775,0.000109,2]
[333945798,1722645032151,-162.03527453,0.000109,2]
[333945799,1722645032161,-2430.57,0.00010907,2]
[333945800,1722645032171,-250.0,0.00010959,2]
[333945801,1722645032180,-215.12,0.00010959,5]
[333945802,1722645032189,-155.71,0.0001099,2]
[333945803,1722645032198,-290.66,0.0001099,2]
[333945804,1722645032208,-290.66,0.0001099,2]
[333945806,1722645032218,-290.66,0.0001099,2]
[333945808,1722645032227,-290.66,0.0001099,2]
[333945810,1722645032237,-290.66,0.0001099,2]
[333945812,1722645032246,-500.0,0.00010999,2]
[333945814,1722645032255,-179.69827873,0.00010999,2]
[333945816,1722645032265,-500.0,0.00010999,2]
[333945817,1722645032274,-500.0,0.00010999,2]
[333945818,1722645032283,-169.0155352,0.00010999,2]
[333945819,1722645032292,-58390.20323651,0.00011,2]
[333945820,1722645032349,-290.66,0.0001099,2]
[333945821,1722645032359,-257.68318324,0.00011,2]
[333945822,1722645032370,-602.4599999,0.00011,2]
[333945823,1722645032382,-331.9599993,0.00011,2]
[333945824,1722645032412,-642.46498257,0.00011,2]
[333945917,1722645038810,-290.66,0.0001099,2]
[333945919,1722645038821,-290.66,0.0001099,2]
[333945921,1722645038832,-290.66,0.0001099,2]
[333945923,1722645038845,-15.52,0.0001099,2]
[333945939,1722645039551,-275.14,0.0001099,2]
[333945940,1722645039562,-290.66,0.0001099,2]
[333945941,1722645039573,-73.02,0.0001099,2]
[333945942,1722645039584,-217.64,0.0001099,2]
[333945943,1722645039594,-94.9738,0.0001099,2]
[333945944,1722645039606,-195.6862,0.0001099,2]
[333945945,1722645039615,-290.66,0.0001099,2]
[333945946,1722645039624,-290.66,0.0001099,2]
[333945947,1722645039633,-290.66,0.0001099,2]
[333945948,1722645039643,-33.00505844,0.0001099,2]
[333945950,1722645039655,-257.65494156,0.0001099,2]
[333945951,1722645039666,-290.66,0.0001099,2]
[333945952,1722645040008,-290.66,0.0001099,2]
[333945953,1722645040018,-290.66,0.0001099,2]
[333945954,1722645040028,-290.66,0.0001099,2]
[333945955,1722645040037,-290.66,0.0001099,2]
[333945956,1722645040046,-290.66,0.0001099,2]
[333945957,1722645040056,-290.66,0.0001099,2]
[333945958,1722645040065,-290.66,0.0001099,2]
[333945959,1722645040074,-290.66,0.0001099,2]
[333945960,1722645040084,-15094.79880615,0.00011,2]
[333945961,1722645040095,-774.06996451,0.00011,2]
[333945962,1722645040107,-1974.20747044,0.00011,2]
[333945963,1722645040119,-666.4,0.00011,2]
[333945964,1722645040131,-11709.60775064,0.00011,2]
[333945965,1722645040142,-2510.72,0.00011,2]
[333945966,1722645040154,-655.6964493,0.00011,2]
[333945967,1722645040165,-719.45,0.00011,2]
[333945968,1722645040176,-443.13092382,0.00011,2]
[333945969,1722645040228,-4311.12098277,0.00011,2]
[333945970,1722645040239,-717.96206054,0.00011,2]
[333946033,1722645040876,-716.21015169,9.794e-05,2]
[333946035,1722645040886,-290.66,0.0001099,2]
[333946037,1722645040895,-3601.20228047,0.00011,2]
[333946039,1722645040907,-8821.75096878,0.00011,2]
[333946041,1722645040919,-53507.77650811,0.00011,2]
[333946044,1722645040939,-578.34375556,0.00011,2]
[333946046,1722645040951,-373.89184271,0.00011,2]
[333946049,1722645040962,-397.63098387,0.00011,2]
[333946052,1722645040986,-1150.70064965,0.00011,2]
[333946054,1722645040997,-112735.72390297,0.00011,2]
[333946057,1722645041024,-11051.1857742,0.00011,2]
[333946059,1722645041035,-3870.18624551,0.00011,2]
[333946061,1722645041047,-3413.04704808,0.00011,2]
[333946064,1722645041058,-3699.9559457,0.00011,2]
[333946066,1722645041069,-308.42499996,0.00011,2]
[333946069,1722645041091,-438.3,0.00011,2]
[333946071,1722645041103,-3072.09394039,0.00011,2]
[333946073,1722645041113,-1701.09219841,0.00011,2]
[333946074,1722645041124,-706.04,0.00011,2]
[333946075,1722645041135,-84567.13992091,0.00011,2]
[333946094,1722645042747,-2126.874996,0.00011,2]
[333946096,1722645044363,-321.32313723,0.00011,2]
[333946097,1722645044383,-2165.40297485,0.00011,2]
[333946098,1722645044397,-542.00088822,0.00011,2]
[333946099,1722645044412,-455.37695136,0.00011,2]
[333946100,1722645044424,-569.23368,0.00011,2]
[333946101,1722645044452,-228487.95895451,0.00011,2]
[333946102,1722645044468,-11096.02133797,0.00011,2]
[333946103,1722645044480,-1732.88242047,0.00011,2]
[333946104,1722645044492,-412.0,0.00011,2]
[333946105,1722645044503,-7707.22865925,0.00011,2]
[333946106,1722645044515,-48973.76785368,0.00011,2]
[333946107,1722645044590,-7511.451376,0.00010509,2]
[333946108,1722645044600,-1378778.60978718,0.00011,2]
[333946109,1722645044610,-18000.0,0.00011,2]
[333946110,1722645044619,-208377.60613643,0.00011,2]
[333946111,1722645044628,-236.41866951,0.00011105,2]
[333946112,1722645044638,-200.0,0.00011131,2]
[333946113,1722645044649,-1019.6187161,0.00011176,2]
[333946114,1722645044659,-150.99,0.00011176,2]
[333946115,1722645044668,-192.53,0.00011493,2]
[333946116,1722645044678,-420.0,0.00011611,2]
[333946117,1722645044688,-420.0,0.00011618,2]
[333946118,1722645044697,-8789.28186256,0.00011687,2]
[333946119,1722645044706,-250.0,0.00011715,2]
[333946120,1722645044716,-412.76630026,0.00011776,2]
[333946121,1722645044725,-511.86220252,0.00011776,2]
[333946122,1722645044734,-449.14284782,0.00011776,2]
[333946123,1722645044744,-340.69416422,0.00011776,4]
[333946124,1722645044753,-3068.35496075,0.00011776,2]
[333946125,1722645044762,-299.71268725,0.00011776,2]
[333946126,1722645044773,-1049.72746869,0.00011776,2]
[333946127,1722645044782,-181.66385154,0.00011776,2]
[333946128,1722645044791,-155.0,0.00011776,2]
[333946129,1722645044800,-170.34699346,0.00011776,2]
[333946130,1722645044809,-162.47429364,0.00011776,2]
[333946131,1722645044819,-199.93,0.00011791,2]
[333946132,1722645044828,-165.12,0.00011977,2]
[333946133,1722645044838,-550.0,0.00012,2]
[333946134,1722645044847,-872.5,0.00012059,2]
[333946135,1722645044858,-960.0,0.00012248,2]
[333946136,1722645044868,-896.0318,0.0001226,2]
[333946137,1722645044877,-186.2066306,0.00012312,2]
[333946138,1722645044887,-183.78861233,0.00012312,2]
[333946139,1722645044911,-692.63102411,0.00012312,2]
[333946140,1722645044920,-1206.7912,0.00012312,2]
[333946141,1722645044930,-1951.9343,0.00012392,2]
[333946142,1722645044942,-100000.0,0.00012412,2]
[333946143,1722645044953,-16165.818,0.00012412,2]
[333946144,1722645044962,-1000.0,0.00012413,2]
[333946145,1722645044972,-2500.0,0.00012413,2]
[333946146,1722645044981,-8789.28186256,0.00012474,2]
[333946147,1722645044991,-102782.8618,0.00012513,2]
[333946148,1722645045001,-102078.03983012,0.0001254,2]
[333946149,1722645045013,-490.672139,0.0001254,2]
[333946150,1722645045959,-6369.33219626,0.00012312,2]
[333946151,1722645045969,-106106.3126731,0.0001254,2]
[333946152,1722645046696,-1162.18224635,0.0001254,2]
[333946153,1722645046818,-1964.39524608,0.0001254,2]
[333946154,1722645046988,-21918.2989575,0.0001254,2]
[333946155,1722645047000,-6750.77255877,0.0001254,2]
[333946156,1722645141510,150.0,8.219e-05,2]
[333946157,1722645141535,150.0,8.219e-05,2]
[333946158,1722645141556,150.0,8.219e-05,2]
[333946159,1722645141578,150.0,8.219e-05,2]
[333946160,1722645141600,150.0,8.219e-05,2]
[333946161,1722645141622,150.0,8.219e-05,2]
[333946162,1722645141644,1.16,8.219e-05,2]
[333946168,1722645191753,150.0,8.219e-05,2]
[333946169,1722645191773,150.0,8.219e-05,2]
[333946170,1722645191795,293.20460724,8.219e-05,2]
[333946171,1722645191822,2475.15035351,8.219e-05,2]
[333946172,1722645204764,150.0,8.219e-05,2]
[333946173,1722645204785,150.0,8.219e-05,2]
[333946174,1722645204807,150.0,8.219e-05,2]
[333946175,1722645204827,150.0,8.219e-05,2]
[333946176,1722645204850,150.0,8.219e-05,2]
[333946177,1722645204871,150.0,8.219e-05,2]
[333946178,1722645204892,150.0,8.219e-05,2]
[333946179,1722645204914,150.0,8.219e-05,2]
[333946180,1722645204938,150.0,8.219e-05,2]
[333946181,1722645204959,150.0,8.219e-05,2]
[333946182,1722645204981,150.0,8.219e-05,2]
[333946183,1722645205002,150.0,8.219e-05,2]
[333946184,1722645205024,150.0,8.219e-05,2]
[333946185,1722645205045,150.0,8.219e-05,2]
[333946186,1722645205066,150.0,8.219e-05,2]
[333946187,1722645205090,117.0785517,8.219e-05,2]
[333946188,1722645235302,150.0,8.219e-05,2]
[333946189,1722645235324,150.0,8.219e-05,2]
[333946190,1722645235347,150.0,8.219e-05,2]
[333946191,1722645235372,101.98971259,8.219e-05,2]
[333946192,1722645283923,150.0,8.219e-05,2]
[333946193,1722645283949,150.0,8.219e-05,2]
[333946194,1722645283971,150.0,8.219e-05,2]
[333946195,1722645283992,150.0,8.219e-05,2]
[333946196,1722645284014,150.0,8.219e-05,2]
[333946197,1722645284034,36.36758229,8.219e-05,2]
[333946198,1722645285631,113.63241771,8.219e-05,2]
[333946199,1722645285659,113.95401193,8.219e-05,2]
[333946200,1722645297102,150.0,8.219e-05,2]
[333946201,1722645297127,150.0,8.219e-05,2]
[333946202,1722645297153,150.0,8.219e-05,2]
[333946203,1722645297179,150.0,8.219e-05,2]
[333946204,1722645297205,289.65592252,8.219e-05,2]
[333946205,1722645297233,2178.69903823,8.219e-05,2]
[333946206,1722645386937,150.0,8.219e-05,2]
[333946207,1722645386960,150.0,8.219e-05,2]
[333946208,1722645391025,150.0,8.219e-05,2]
[333946209,1722645391047,77.58642964,8.219e-05,2]
[333946210,1722645412071,142.0549017,8.219e-05,2]
[333946211,1722645412093,2423.46950078,8.219e-05,2]
[333946212,1722645470936,221.98357036,8.219e-05,2]
[333946213,1722645485090,227.58642964,8.219e-05,2]
[333946216,1722645871211,163.69,8.802e-05,2]
[333946217,1722645929260,-943.41,9.486e-05,2]
[333946218,1722645929279,-943.41,9.695e-05,2]
[333946219,1722645929300,-224.6737,9.695e-05,2]
[333946220,1722645929309,-165.5063,9.695e-05,2]
[333946221,1722645978741,-8.05247246,9.695e-05,2]
[333946222,1722645978772,-500.0,9.97e-05,2]
[333946223,1722645978804,-155.0,0.00010669,2]
[333946224,1722645978836,-475.59545508,0.000109,2]
[333946225,1722645978879,-8.05247246,0.000109,2]
[333946226,1722645978908,-364.65167246,0.000109,2]
[333946227,1722645978917,-135.34832754,0.00010985,2]
[333946228,1722645978929,-155.0,0.00010985,2]
[333946229,1722645978952,-848.2996,0.00010985,2]
[333946231,1722646036557,-389.30207246,0.00010985,2]
[333946232,1722646036589,-155.0,0.00011,2]
[333946233,1722646036625,-300.0,0.00011104,2]
[333946234,1722646036656,-155.0,0.00011105,2]
[333946235,1722646036688,-367.51291896,0.00011105,2]
[333946236,1722646036720,-155.0,0.00011105,2]
[333946237,1722646036751,-263.85856059,0.00011105,2]
[333946238,1722646036764,-56.65289598,0.00011105,2]
[333946239,1722646036773,-332.64917648,0.00011105,2]
[333946240,1722646036789,-81.75125051,0.00011105,2]
[333946241,1722646036799,-73.24874949,0.00011105,2]
[333946242,1722646036822,-300.0,0.00011105,2]
[333946243,1722646036841,-119.90245508,0.00011105,2]
[333946244,1722646036855,-35.09754492,0.00011105,2]
[333946245,1722646036882,-119.90245508,0.00011105,2]
[333946246,1722646036892,-155.05841968,0.00011105,2]
[333946247,1722646036902,-92.5520442,0.00011105,2]
[333946248,1722646036918,-62.49575187,0.00011105,2]
[333946249,1722646036927,-92.50424813,0.00011137,2]
[333946250,1722646036939,-107.50575187,0.00011137,2]
[333946251,1722646036949,-213.0057047,0.0001114,2]
[333946256,1722646088102,-313.20868536,0.00010985,4]
[333946257,1722646088122,-313.20868536,0.0001114,2]
[333946258,1722646088151,-1178.09560994,0.0001114,2]
[333946259,1722646088160,-155.0,0.00011185,2]
[333946260,1722646088169,-20.48701934,0.00011185,2]
[333946261,1722646142944,-129.51298066,0.00011185,2]
[333946262,1722646142964,-129.51298066,0.00011186,2]
[333946263,1722646142988,-4336.97403868,0.00011186,2]
[333946279,1722646232467,-300.0,0.00011185,2]
[333946280,1722646232478,-2938.627762,0.00011186,2]
[333946281,1722646232665,-4933.39120602,0.00011186,2]
[333946282,1722646232683,-4413.7345626,0.00011186,2]
[333946283,1722646232700,-4950.35413857,0.00011186,2]
[333946284,1722646232718,-1351.00994531,0.00011186,2]
[333946285,1722646232732,-23590.02415951,0.00011186,2]
[333946286,1722646232743,-25298.4632004,0.00011186,2]
[333946287,1722646232755,-171.68,0.00011314,2]
[333946288,1722646232766,-162.94320824,0.00011322,2]
[333946289,1722646232777,-23900.0,0.00011565,2]
[333946290,1722646232788,-250.0,0.00011658,2]
[333946291,1722646232801,-943.41,0.0001175,2]
[333946292,1722646232812,-7895.27913791,0.00011959,2]
[333946293,1722646232823,-150.02,0.00012053,2]
[333946294,1722646232834,-319.30965259,0.00012079,2]
[333946295,1722646232845,-168.58,0.00012128,2]
[333946296,1722646232857,-1000.0,0.00012194,2]
[333946297,1722646232868,-150.99,0.00012194,2]
[333946298,1722646232880,-499.99,0.00012194,2]
[333946299,1722646232891,-6152.49730381,0.00012212,2]
[333946300,1722646232901,-628.4084,0.00012212,2]
[333946301,1722646234085,-230.0,0.00012236,2]
[333946302,1722646234121,-420.0,0.00012289,2]
[333946303,1722646234151,-1000.0,0.00012312,2]
[333946304,1722646234174,-1000.0,0.00012312,2]
[333946305,1722646234187,-1000.0,0.00012312,2]
[333946306,1722646234197,-1000.0,0.00012312,2]
[333946307,1722646234207,-1000.0,0.00012312,2]
[333946308,1722646234216,-1000.0,0.00012312,2]
[333946309,1722646234225,-1000.0,0.00012312,2]
[333946310,1722646234235,-1000.0,0.00012312,2]
[333946311,1722646234248,-1000.0,0.00012312,2]
[333946312,1722646234257,-1000.0,0.00012312,2]
[333946313,1722646234267,-1000.0,0.00012312,2]
[333946314,1722646234277,-1000.0,0.00012312,2]
[333946315,1722646234286,-1000.0,0.00012312,2]
[333946316,1722646234297,-1000.0,0.00012312,2]
[333946317,1722646234307,-1000.0,0.00012312,2]
[333946318,1722646234317,-1000.0,0.00012312,2]
[333946319,1722646234327,-1000.0,0.00012312,2]
[333946320,1722646234337,-1000.0,0.00012312,2]
[333946321,1722646234346,-1000.0,0.00012312,2]
[333946322,1722646234355,-1000.0,0.00012312,2]
[333946323,1722646234364,-1000.0,0.00012312,2]
[333946324,1722646234374,-1000.0,0.00012312,2]
[333946325,1722646234383,-1000.0,0.00012312,2]
[333946326,1722646234392,-1000.0,0.00012312,2]
[333946327,1722646234402,-1000.0,0.00012312,2]
[333946328,1722646234412,-1000.0,0.00012312,2]
[333946329,1722646234422,-1000.0,0.00012312,2]
[333946330,1722646234431,-1000.0,0.00012312,2]
[333946331,1722646234441,-1000.0,0.00012312,2]
[333946332,1722646234450,-1000.0,0.00012312,2]
[333946333,1722646234460,-1000.0,0.00012312,2]
[333946334,1722646234470,-1000.0,0.00012312,2]
[333946335,1722646234479,-1000.0,0.00012312,2]
[333946336,1722646234489,-1000.0,0.00012312,2]
[333946337,1722646234498,-1000.0,0.00012312,2]
[333946338,1722646234508,-1000.0,0.00012312,2]
[333946339,1722646234517,-1000.0,0.00012312,2]
[333946340,1722646234527,-1000.0,0.00012312,2]
[333946341,1722646234537,-1000.0,0.00012312,2]
[333946342,1722646234550,-1000.0,0.00012312,2]
[333946343,1722646234565,-1000.0,0.00012312,2]
[333946344,1722646234575,-1000.0,0.00012312,2]
[333946345,1722646234584,-1000.0,0.00012312,2]
[333946346,1722646234594,-1000.0,0.00012312,2]
[333946347,1722646234604,-1000.0,0.00012312,2]
[333946348,1722646234614,-1000.0,0.00012312,2]
[333946349,1722646234624,-1000.0,0.00012312,2]
[333946350,1722646234633,-1000.0,0.00012312,2]
[333946351,1722646234644,-1000.0,0.00012312,2]
[333946352,1722646234653,-1000.0,0.00012312,2]
[333946353,1722646234663,-1000.0,0.00012312,2]
[333946354,1722646234672,-1000.0,0.00012312,2]
[333946355,1722646234682,-1000.0,0.00012312,2]
[333946356,1722646234691,-1000.0,0.00012312,2]
[333946357,1722646234702,-1000.0,0.00012312,2]
[333946358,1722646234711,-1000.0,0.00012312,2]
[333946359,1722646234721,-1000.0,0.00012312,2]
[333946360,1722646234731,-1000.0,0.00012312,2]
[333946361,1722646234741,-1000.0,0.00012312,2]
[333946362,1722646234750,-1000.0,0.00012312,2]
[333946363,1722646234760,-1000.0,0.00012312,2]
[333946364,1722646234770,-1000.0,0.00012312,2]
[333946365,1722646234779,-1000.0,0.00012312,2]
[333946366,1722646234789,-1000.0,0.00012312,2]
[333946367,1722646234799,-1000.0,0.00012312,2]
[333946368,1722646234808,-1000.0,0.00012312,2]
[333946369,1722646234817,-1000.0,0.00012312,2]
[333946370,1722646234827,-1000.0,0.00012312,2]
[333946371,1722646234836,-1000.0,0.00012312,2]
[333946372,1722646234845,-1000.0,0.00012312,2]
[333946373,1722646234854,-1000.0,0.00012312,2]
[333946374,1722646234864,-1000.0,0.00012312,2]
[333946375,1722646234873,-1000.0,0.00012312,2]
[333946376,1722646234882,-1000.0,0.00012312,2]
[333946377,1722646234891,-1000.0,0.00012312,2]
[333946378,1722646234901,-1000.0,0.00012312,2]
[333946379,1722646234911,-1000.0,0.00012312,2]
[333946380,1722646234920,-1000.0,0.00012312,2]
[333946381,1722646234930,-1000.0,0.00012312,2]
[333946382,1722646234939,-1000.0,0.00012312,2]
[333946383,1722646234949,-1000.0,0.00012312,2]
[333946384,1722646234958,-1000.0,0.00012312,2]
[333946385,1722646234968,-1000.0,0.00012312,2]
[333946386,1722646234977,-1000.0,0.00012312,2]
[333946387,1722646234987,-1000.0,0.00012312,2]
[333946388,1722646234996,-1000.0,0.00012312,2]
[333946389,1722646235005,-1000.0,0.00012312,2]
[333946390,1722646235014,-1000.0,0.00012312,2]
[333946391,1722646235024,-1000.0,0.00012312,2]
[333946392,1722646235033,-1000.0,0.00012312,2]
[333946393,1722646235042,-1000.0,0.00012312,2]
[333946394,1722646235051,-1000.0,0.00012312,2]
[333946395,1722646235061,-1000.0,0.00012312,2]
[333946396,1722646235071,-1000.0,0.00012312,2]
[333946397,1722646235080,-1000.0,0.00012312,2]
[333946398,1722646235089,-1000.0,0.00012312,2]
[333946399,1722646235098,-1000.0,0.00012312,2]
[333946400,1722646235107,-1000.0,0.00012312,2]
[333946401,1722646235117,-1000.0,0.00012312,2]
[333946402,1722646235126,-1012.0,0.00012312,2]
[333946403,1722646235135,-24993.83053662,0.0001236,2]
[333946404,1722646235145,-2838.6219248,0.00012391,2]
[333946405,1722646235154,-1926.73701932,0.00012397,2]
[333946406,1722646235164,-3000.0,0.0001241,2]
[333946407,1722646235173,-162.03527452,0.00012439,2]
[333946408,1722646235183,-1000.0,0.00012439,2]
[333946409,1722646235192,-350.51,0.00012439,2]
[333946410,1722646235202,-864.9085,0.00012439,2]
[333946411,1722646235211,-72790.9324,0.00012439,2]
[333946412,1722646235220,-200.01,0.00012529,2]
[333946413,1722646235230,-54295.59094341,0.0001254,2]
[333946414,1722646235244,-7945.8478361,0.0001254,2]
[333946415,1722646235253,-5000.0,0.0001254,2]
[333946416,1722646235263,-200.0,0.0001254,2]
[333946417,1722646235272,-171.29,0.00012561,2]
[333946418,1722646235283,-200.0,0.00012665,2]
[333946419,1722646235293,-365.36537875,0.00012681,2]
[333946420,1722646235302,-168.58,0.00012772,2]
[333946421,1722646235311,-200.0,0.00012792,2]
[333946422,1722646235320,-6152.49730379,0.00012884,2]
[333946423,1722646235332,-1621.96390599,0.00013066,2]
[333946424,1722646235341,-1638.82678995,0.00013132,2]
[333946425,1722646235351,-1274.36385477,0.00013132,2]
[333946426,1722646235360,-1297.00150596,0.00013165,2]
[333946427,1722646235369,-1175.72672229,0.00013199,2]
[333946428,1722646235379,-1122.0148,0.00013233,2]
[333946429,1722646235388,-1137.94693277,0.00013283,2]
[333946430,1722646235397,-2383.99791829,0.00013297,2]
[333946431,1722646235407,-2213.66194636,0.00013297,2]
[333946432,1722646235416,-224.76127133,0.00013302,2]
[333946433,1722646235426,-947.76827511,0.00013303,2]
[333946434,1722646235437,-155.0,0.00013303,2]
[333946435,1722646235446,-203.20879356,0.00013303,2]
[333946436,1722646235455,-236.57,0.0001337,30]
[333946437,1722646235464,-243.00643023,0.00013378,2]
[333946438,1722646235474,-210.84776497,0.00013398,2]
[333946439,1722646235483,-168.58,0.00013415,2]
[333946440,1722646235492,-600.14164396,0.00013479,2]
[333946441,1722646235501,-649.20351135,0.00013483,2]
[333946442,1722646235511,-155.0,0.00013489,2]
[333946443,1722646235520,-722.68329662,0.00013499,2]
[333946444,1722646235529,-265.40365022,0.00013499,2]
[333946445,1722646235540,-347.32373286,0.00013499,2]
[333946446,1722646235550,-531.71425505,0.00013499,2]
[333946447,1722646235559,-476.4573429,0.00013499,2]
[333946448,1722646235569,-159.45352727,0.00013499,2]
[333946449,1722646235579,-587.0,0.00013501,2]
[333946450,1722646235588,-484.69898026,0.0001351,2]
[333946451,1722646235599,-6152.49730379,0.00013555,2]
[333946452,1722646235608,-297.19942446,0.00013561,2]
[333946453,1722646235618,-270.53531437,0.00013561,2]
[333946454,1722646235628,-155.0,0.00013561,2]
[333946455,1722646235638,-164.21268611,0.00013579,2]
[333946456,1722646235648,-295.70781883,0.00013579,2]
[333946457,1722646235657,-357.10853561,0.00013579,2]
[333946458,1722646235667,-270.28818504,0.00013648,2]
[333946459,1722646235677,-155.0,0.00013648,2]
[333946460,1722646235687,-439.64535601,0.00013648,2]
[333946461,1722646235697,-202.68830391,0.00013648,2]
[333946462,1722646235707,-155.06031088,0.00013648,2]
[333946463,1722646235717,-155.0,0.00013648,2]
[333946464,1722646235727,-155.2902479,0.00013648,2]
[333946465,1722646235737,-155.0,0.00013648,2]
[333946466,1722646235746,-200.0,0.0001367,2]
[333946467,1722646235756,-186.72311847,0.0001367,2]
[333946468,1722646235765,-359.03203292,0.0001367,2]
[333946469,1722646235775,-164.23596765,0.0001367,2]
[333946470,1722646235785,-155.0,0.0001367,2]
[333946471,1722646235796,-217.46070648,0.0001367,2]
[333946472,1722646235805,-155.0,0.0001367,2]
[333946473,1722646235815,-155.0,0.0001367,2]
[333946474,1722646235824,-218.70120193,0.00013698,2]
[333946475,1722646235834,-218.70120193,0.00013698,2]
[333946476,1722646235843,-1500.0,0.00013698,2]
[333946477,1722646235852,-165.34169392,0.00013698,2]
[333946478,1722646235862,-158.42,0.00013699,2]
[333946479,1722646235872,-2751.0,0.00013699,2]
[333946480,1722646235881,-200.0,0.00013699,2]
[333946481,1722646235891,-155.0,0.00013699,2]
[333946482,1722646235901,-327.928426,0.00013699,2]
[333946483,1722646235910,-196.93669502,0.00013699,2]
[333946484,1722646235919,-1000.0,0.00013719,2]
[333946485,1722646235929,-363.80421493,0.00013789,2]
[333946486,1722646235939,-158.84772296,0.00013789,2]
[333946487,1722646235948,-155.0,0.00013789,2]
[333946488,1722646235958,-155.0,0.00013789,2]
[333946489,1722646235967,-155.0,0.00013789,2]
[333946490,1722646235977,-159.52895906,0.00013799,2]
[333946491,1722646235986,-62575.523069,0.000138,2]
[333946492,1722646235996,-255.26603571,0.00013825,2]
[333946493,1722646236008,-155.0,0.00013896,2]
[333946494,1722646236017,-5214.62692242,0.00013903,2]
[333946495,1722646236027,-155.71,0.00013903,2]
[333946496,1722646236037,-5165.29930365,0.00013913,2]
[333946497,1722646236046,-1343.13806031,0.00013913,2]
[333946498,1722646236056,-200.01,0.00013922,2]
[333946499,1722646236066,-500.0,0.0001396,2]
[333946500,1722646236075,-500.0,0.0001396,2]
[333946501,1722646236085,-500.0,0.0001396,2]
[333946502,1722646236094,-472.62,0.00013973,2]
[333946503,1722646236103,-150.41,0.00013973,2]
[333946504,1722646236112,-600.0,0.00014,2]